bitfinex/quotes_BTCUSD_20241022
["timestamp","ask_amount","ask_price","bid_price","bid_amount"]
[1729571363225,0.00084,67492.0,67491.0,0.31194285]
[1729571363433,0.00084,67492.0,67491.0,0.33288156]
[1729571364588,0.00184,67492.0,67491.0,0.33288156]
[1729571365937,0.00084,67492.0,67491.0,0.33288156]
[1729571366156,0.00384,67492.0,67491.0,0.33288156]
[1729571366340,0.00084,67492.0,67491.0,0.33288156]
[1729571366573,0.00084,67492.0,67491.0,0.31806486]
[1729571366783,0.00484,67492.0,67491.0,0.31806486]
[1729571367237,0.00584,67492.0,67491.0,0.31806486]
[1729571367657,0.00184,67492.0,67491.0,0.31806486]
[1729571367875,0.00384,67492.0,67491.0,0.31806486]
[1729571368300,0.00484,67492.0,67491.0,0.31806486]
[1729571369353,0.00384,67492.0,67491.0,0.31806486]
[1729571369812,0.00384,67492.0,67491.0,0.32306486]
[1729571370038,0.00384,67492.0,67491.0,0.32806486]
[1729571370314,0.09874,67492.0,67491.0,0.31806486]
[1729571370469,0.09874,67492.0,67491.0,0.31906486]
[1729571370682,0.09874,67492.0,67491.0,0.32006486]
[1729571374720,0.09874,67492.0,67491.0,0.17189786]
[1729571375134,0.09874,67492.0,67491.0,0.32006486]
[1729571376006,0.09874,67492.0,67491.0,0.31806486]
[1729571376437,0.10374,67492.0,67491.0,0.31806486]
[1729571378611,0.00584,67492.0,67491.0,0.31806486]
[1729571384477,0.00584,67492.0,67491.0,0.16989786]
[1729571384478,0.17544,67492.0,67491.0,0.16989786]
[1729571384705,0.17544,67492.0,67491.0,0.31806486]
[1729571385160,0.17444,67492.0,67491.0,0.31806486]
[1729571385393,0.17744,67492.0,67491.0,0.31806486]
[1729571385855,0.17344,67492.0,67491.0,0.31806486]
[1729571386313,0.17644,67492.0,67491.0,0.31806486]
[1729571386535,0.17044,67492.0,67491.0,0.31806486]
[1729571386770,0.17644,67492.0,67491.0,0.31806486]
[1729571398365,0.09934,67492.0,67491.0,0.16989786]
[1729571400542,0.247505,67492.0,67491.0,0.16989786]
[1729571401640,0.247505,67492.0,67491.0,0.02093871]
[1729571401641,0.327105,67492.0,67491.0,0.02093871]
[1729571402769,0.321105,67492.0,67491.0,0.02093871]
[1729571402990,0.321105,67492.0,67491.0,0.02193871]
[1729571402991,0.329105,67492.0,67491.0,0.02193871]
[1729571403208,0.334105,67492.0,67491.0,0.02293871]
[1729571404492,0.329105,67492.0,67491.0,0.02193871]
[1729571405367,0.333105,67492.0,67491.0,0.02093871]
[1729571405574,0.321105,67492.0,67491.0,0.02093871]
[1729571405775,0.332105,67492.0,67491.0,0.02193871]
[1729571405985,0.345105,67492.0,67491.0,0.02193871]
[1729571406217,0.350105,67492.0,67491.0,0.02193871]
[1729571406472,0.352105,67492.0,67491.0,0.02193871]
[1729571407287,0.350105,67492.0,67491.0,0.02193871]
[1729571407934,0.352105,67492.0,67491.0,0.02193871]
[1729571408170,0.350105,67492.0,67491.0,0.02193871]
[1729571408597,0.352105,67492.0,67491.0,0.02193871]
[1729571408825,0.350105,67492.0,67491.0,0.02193871]
[1729571409510,0.46840158,67492.0,67491.0,0.02193871]
[1729571409725,0.57040158,67492.0,67491.0,0.02193871]
[1729571410385,0.61478393,67492.0,67491.0,0.02193871]
[1729571410606,0.61478393,67492.0,67484.0,0.0001001]
[1729571410607,0.165181,67485.0,67484.0,0.0001001]
[1729571410826,0.70379797,67485.0,67484.0,0.0001001]
[1729571411269,0.70379797,67485.0,67477.0,0.0001001]
[1729571411270,0.320976,67478.0,67477.0,0.0001001]
[1729571411502,0.42927258,67478.0,67477.0,0.0001001]
[1729571411756,0.43127258,67478.0,67477.0,0.0001001]
[1729571411994,0.42927258,67478.0,67477.0,0.0001001]
[1729571412747,0.44327258,67478.0,67477.0,0.0011001]
[1729571413194,0.45727258,67478.0,67477.0,0.0011001]
[1729571413442,0.45727258,67478.0,67477.0,0.001]
[1729571415051,0.45927258,67478.0,67477.0,0.001]
[1729571415321,0.45727258,67478.0,67477.0,0.001]
[1729571417431,0.46605846,67478.0,67477.0,0.001]
[1729571417650,0.46405846,67478.0,67477.0,0.001]
[1729571424390,0.57905846,67478.0,67477.0,0.001]
[1729571426439,0.58105846,67478.0,67477.0,0.001]
[1729571427240,0.57905846,67478.0,67477.0,0.001]
[1729571427453,0.263198,67477.0,67476.0,0.00165]
[1729571427659,0.354398,67477.0,67476.0,0.00165]
[1729571428760,0.355398,67477.0,67476.0,0.00165]
[1729571428964,0.356398,67477.0,67476.0,0.00465]
[1729571429882,0.46469458,67477.0,67476.0,0.00465]
[1729571439507,0.46719458,67477.0,67476.0,0.00465]
[1729571456255,0.262698,67477.0,67476.0,0.00465]
[1729571456477,0.257698,67477.0,67476.0,0.00465]
[1729571456688,0.257698,67477.0,67476.0,0.02155008]
[1729571456887,0.257698,67477.0,67476.0,0.00465]
[1729571457122,0.256698,67477.0,67476.0,0.02155008]
[1729571457324,0.255698,67477.0,67476.0,0.00165]
[1729571457553,0.256698,67477.0,67476.0,0.01855008]
[1729571457776,0.269698,67477.0,67476.0,0.00165]
[1729571457997,0.256698,67477.0,67476.0,0.01855008]
[1729571458226,0.270698,67477.0,67476.0,0.00165]
[1729571458502,0.270698,67477.0,67476.0,0.01855008]
[1729571458717,0.27433418,67477.0,67476.0,0.01855008]
[1729571459386,0.28833418,67477.0,67476.0,0.01855008]
[1729571459848,0.28833418,67477.0,67476.0,0.01854008]
[1729571460336,0.18333418,67477.0,67476.0,0.28448325]
[1729571460599,0.18333418,67477.0,67476.0,0.36428325]
[1729571460600,0.03513618,67477.0,67476.0,0.36428325]
[1729571460834,0.03513618,67477.0,67476.0,0.51248325]
[1729571461090,0.03513618,67477.0,67476.0,0.49307759]
[1729571461313,0.03513618,67477.0,67476.0,0.58124693]
[1729571461543,0.0165,67477.0,67476.0,0.49807759]
[1729571461758,0.0165,67477.0,67476.0,0.62582904]
[1729571461971,0.0025,67477.0,67476.0,0.49307759]
[1729571462178,0.0065,67477.0,67476.0,0.49307759]
[1729571462595,0.0065,67477.0,67476.0,0.49507759]
[1729571462803,0.0025,67477.0,67476.0,0.49507759]
[1729571463584,0.0025,67477.0,67476.0,0.56141624]
[1729571463771,0.0035,67477.0,67476.0,0.56441624]
[1729571464198,0.0035,67477.0,67476.0,0.56241624]
[1729571464398,0.0035,67477.0,67476.0,0.49607759]
[1729571464637,0.0055,67477.0,67476.0,0.49607759]
[1729571465070,0.0045,67477.0,67476.0,0.49307759]
[1729571466855,0.0055,67477.0,67476.0,0.49607759]
[1729571467290,0.0055,67477.0,67476.0,0.53791135]
[1729571467291,0.0035,67477.0,67476.0,0.53791135]
[1729571467669,0.0035,67477.0,67476.0,0.61017334]
[1729571467903,0.0035,67477.0,67476.0,0.56833958]
[1729571468120,0.0035,67477.0,67476.0,0.56233958]
[1729571468545,0.0025,67477.0,67476.0,0.49307759]
[1729571468758,0.0025,67477.0,67476.0,0.71077151]
[1729571468968,0.0025,67477.0,67476.0,0.73589227]
[1729571469172,0.0025,67477.0,67476.0,0.64650952]
[1729571469390,0.0025,67477.0,67476.0,0.73478768]
[1729571469594,0.0025,67477.0,67476.0,0.49807759]
[1729571469807,0.0035,67477.0,67476.0,0.5893509]
[1729571470014,0.0035,67477.0,67476.0,0.60937417]
[1729571470224,0.0025,67477.0,67476.0,0.67258451]
[1729571470430,0.0025,67477.0,67476.0,0.60637417]
[1729571470635,0.0035,67477.0,67476.0,0.61537417]
[1729571470844,0.0035,67477.0,67476.0,0.60937417]
[1729571471269,0.0035,67477.0,67476.0,0.61937417]
[1729571471270,0.0045,67477.0,67476.0,0.61937417]
[1729571471480,0.0045,67477.0,67476.0,0.60937417]
[1729571471694,0.0035,67477.0,67476.0,0.60937417]
[1729571471914,0.0025,67477.0,67476.0,0.60637417]
[1729571472119,0.0035,67477.0,67476.0,0.61537417]
[1729571472326,0.0045,67477.0,67476.0,0.61837417]
[1729571472722,0.0035,67477.0,67476.0,0.61537417]
[1729571472929,0.0045,67477.0,67476.0,0.61837417]
[1729571473564,0.0035,67477.0,67476.0,0.60937417]
[1729571473799,0.0045,67477.0,67476.0,0.61637417]
[1729571476719,0.005326,67477.0,67476.0,0.61637417]
[1729571484605,0.005326,67477.0,67476.0,0.67859956]
[1729571485510,0.005326,67477.0,67476.0,0.61637417]
[1729571487633,0.003326,67477.0,67476.0,0.60637417]
[1729571488007,0.005326,67477.0,67476.0,0.61937417]
[1729571488624,0.004326,67477.0,67476.0,0.61637417]
[1729571488826,0.005326,67477.0,67476.0,0.61937417]
[1729571489205,0.004326,67477.0,67476.0,0.60937417]
[1729571489416,0.004326,67477.0,67476.0,0.61837417]
[1729571489821,0.004326,67477.0,67476.0,1.31837417]
[1729571492004,0.004326,67477.0,67476.0,1.39455015]
[1729571493067,0.004326,67477.0,67476.0,1.28625357]
[1729571493305,0.004326,67477.0,67476.0,1.31837417]
[1729571493759,0.004326,67477.0,67476.0,1.41837417]
[1729571495963,0.004326,67477.0,67476.0,0.71837417]
[1729571498392,0.004326,67477.0,67476.0,0.83069207]
[1729571498613,0.004326,67477.0,67476.0,0.72239549]
[1729571498838,0.004326,67477.0,67476.0,0.83069207]
[1729571500364,0.004326,67477.0,67476.0,0.85275644]
[1729571501226,0.004326,67477.0,67476.0,0.76449895]
[1729571502379,0.004326,67477.0,67476.0,0.76652424]
[1729571502858,0.004326,67477.0,67476.0,0.58432424]
[1729571503098,0.004326,67477.0,67476.0,0.58229895]
[1729571503330,0.004326,67477.0,67476.0,0.53617417]
[1729571503538,0.004326,67477.0,67476.0,0.62462425]
[1729571504432,0.004326,67477.0,67476.0,0.64649604]
[1729571505398,0.004326,67477.0,67476.0,0.53617417]
[1729571517194,0.004326,67477.0,67476.0,0.42787759]
[1729571517622,0.004326,67477.0,67476.0,0.53863477]
[1729571518040,0.004326,67477.0,67476.0,0.42787759]
[1729571518241,0.004326,67477.0,67476.0,0.51651051]
[1729571519106,0.003326,67477.0,67476.0,0.51351051]
[1729571519321,0.003326,67477.0,67476.0,0.50451051]
[1729571519534,0.003326,67477.0,67476.0,0.42587759]
[1729571519789,0.004326,67477.0,67476.0,0.42587759]
[1729571520269,0.003326,67477.0,67476.0,0.41587759]
[1729571520517,0.003326,67477.0,67476.0,0.50551051]
[1729571520732,0.003326,67477.0,67476.0,0.41687759]
[1729571522358,0.003326,67477.0,67476.0,0.483325]
[1729571522616,0.003326,67477.0,67476.0,0.48331928]
[1729571525363,0.003326,67477.0,67476.0,0.48331888]
[1729571525592,0.003326,67477.0,67476.0,0.41687759]
[1729571526127,0.003326,67477.0,67476.0,0.48331888]
[1729571526807,0.003326,67477.0,67476.0,0.41687759]
[1729571527760,0.003326,67477.0,67476.0,0.48332298]
[1729571529838,0.003326,67477.0,67476.0,0.50547145]
[1729571530335,0.003326,67477.0,67476.0,0.50545069]
[1729571530565,0.003326,67477.0,67476.0,0.52659397]
[1729571530780,0.003326,67477.0,67476.0,0.52859397]
[1729571530969,0.003326,67477.0,67476.0,0.52858738]
[1729571531195,0.003326,67477.0,67476.0,0.52858878]
[1729571531817,0.003326,67477.0,67476.0,0.42087759]
[1729571532063,0.003326,67477.0,67476.0,0.53158908]
[1729571532284,0.003326,67477.0,67476.0,0.52658908]
[1729571532777,0.003326,67477.0,67476.0,0.42487759]
[1729571533003,0.003326,67477.0,67476.0,0.53558993]
[1729571533220,0.003326,67477.0,67476.0,0.42487759]
[1729571533895,0.003326,67477.0,67476.0,0.5355879]
[1729571534117,0.003326,67477.0,67476.0,0.42487759]
[1729571534769,0.003326,67477.0,67476.0,0.53559294]
[1729571535227,0.003326,67477.0,67476.0,0.42487759]
[1729571537878,0.003326,67477.0,67476.0,0.41987759]
[1729571538296,0.003326,67477.0,67476.0,0.42387759]
[1729571538911,0.003326,67477.0,67476.0,0.53217417]
[1729571539125,0.003326,67477.0,67476.0,0.52817417]
[1729571539338,0.003326,67477.0,67476.0,0.53117417]
[1729571542900,0.003326,67477.0,67476.0,0.42287759]
[1729571547351,0.003326,67477.0,67476.0,0.27467759]
[1729571548498,0.003326,67477.0,67476.0,0.26767759]
[1729571548723,0.004326,67477.0,67476.0,0.26767759]
[1729571548948,0.006326,67477.0,67476.0,0.26767759]
[1729571549187,0.003326,67477.0,67476.0,0.26767759]
[1729571549405,0.005326,67477.0,67476.0,0.26767759]
[1729571549634,0.332424,67477.0,67476.0,0.35617295]
[1729571549849,0.332424,67477.0,67476.0,0.26749923]
[1729571554054,0.184226,67477.0,67476.0,0.26749923]
[1729571556823,0.332424,67477.0,67476.0,0.26749923]
[1729571557036,0.184226,67477.0,67476.0,0.26749923]
[1729571557877,0.332424,67477.0,67476.0,0.26749923]
[1729571559237,0.184226,67477.0,67476.0,0.26749923]
[1729571560304,0.332424,67477.0,67476.0,0.26749923]
[1729571560521,0.184226,67477.0,67476.0,0.26749923]
[1729571568217,0.107826,67477.0,67476.0,0.26749923]
[1729571568409,0.256024,67477.0,67476.0,0.26749923]
[1729571568555,0.107826,67477.0,67476.0,0.26749923]
[1729571569592,0.256024,67477.0,67476.0,0.26749923]
[1729571569821,0.107826,67477.0,67476.0,0.26749923]
[1729571571591,0.256024,67477.0,67476.0,0.26749923]
[1729571571858,0.107826,67477.0,67476.0,0.26749923]
[1729571575930,0.008326,67477.0,67476.0,0.26749923]
[1729571582635,0.156524,67477.0,67476.0,0.26749923]
[1729571582850,0.008326,67477.0,67476.0,0.26749923]
[1729571583570,0.156524,67477.0,67476.0,0.26749923]
[1729571583740,0.008326,67477.0,67476.0,0.26749923]
[1729571584572,0.008326,67477.0,67476.0,0.16749923]
[1729571585003,0.006326,67477.0,67476.0,0.16749923]
[1729571586965,0.008326,67477.0,67476.0,0.16749923]
[1729571598179,0.008326,67477.0,67476.0,0.39571703]
[1729571598410,0.008326,67477.0,67476.0,0.60007417]
[1729571598627,0.008326,67477.0,67476.0,0.70007417]
[1729571599309,0.003326,67477.0,67476.0,0.70007417]
[1729571599527,0.003326,67477.0,67476.0,0.70307417]
[1729571599754,0.003326,67477.0,67476.0,0.70807417]
[1729571599960,0.003326,67477.0,67476.0,0.70507417]
[1729571600175,0.003326,67477.0,67476.0,0.70007417]
[1729571600385,0.003326,67477.0,67476.0,0.70507417]
[1729571600596,0.003326,67477.0,67476.0,0.70907417]
[1729571604054,0.003326,67477.0,67476.0,0.85803332]
[1729571604278,0.003326,67477.0,67476.0,0.70907417]
[1729571604475,0.003326,67477.0,67476.0,0.35257759]
[1729571604680,0.003326,67477.0,67476.0,0.32487759]
[1729571604892,0.003326,67477.0,67476.0,0.17667759]
[1729571605517,0.003326,67477.0,67476.0,0.17167759]
[1729571605925,0.005326,67477.0,67476.0,0.17167759]
[1729571606280,0.005326,67477.0,67476.0,0.31587759]
[1729571606499,0.003326,67477.0,67476.0,0.31587759]
[1729571606697,0.006326,67477.0,67476.0,0.31587759]
[1729571606903,0.009326,67477.0,67476.0,0.31587759]
[1729571607864,0.009326,67477.0,67476.0,0.42417417]
[1729571608062,0.009326,67477.0,67476.0,0.60147417]
[1729571608687,0.006326,67477.0,67476.0,0.60147417]
[1729571608901,0.003326,67477.0,67476.0,0.60147417]
[1729571609112,0.006326,67477.0,67476.0,0.60147417]
[1729571609553,0.003326,67477.0,67476.0,0.60147417]
[1729571609788,0.003326,67477.0,67476.0,0.60547417]
[1729571609928,0.003326,67477.0,67476.0,0.50017759]
[1729571610582,0.003326,67477.0,67476.0,0.35197759]
[1729571610790,0.003326,67477.0,67476.0,0.50240081]
[1729571610989,0.003326,67477.0,67476.0,0.50017759]
[1729571611747,0.003326,67477.0,67476.0,0.49617759]
[1729571612067,0.003326,67477.0,67476.0,0.49817759]
[1729571612464,0.003326,67477.0,67476.0,0.49317759]
[1729571612672,0.004326,67477.0,67476.0,0.49317759]
[1729571612868,0.004326,67477.0,67476.0,0.49417759]
[1729571613134,0.003326,67477.0,67476.0,0.49417759]
[1729571614754,0.003326,67477.0,67476.0,0.49317759]
[1729571615571,0.003326,67477.0,67476.0,0.49417759]
[1729571616073,0.003326,67477.0,67476.0,0.49317759]
[1729571616467,0.003326,67477.0,67476.0,0.49417759]
[1729571617826,0.003326,67477.0,67476.0,0.49317759]
[1729571618291,0.003326,67477.0,67476.0,0.49417759]
[1729571619570,0.003326,67477.0,67476.0,0.31687759]
[1729571619996,0.003326,67477.0,67476.0,0.16867759]
[1729571620210,0.003326,67477.0,67476.0,0.16849923]
[1729571620605,0.003326,67477.0,67476.0,0.15177751]
[1729571620798,0.01720091,67477.0,67476.0,0.17060884]
[1729571621152,0.01720091,67477.0,67476.0,0.17160884]
[1729571621626,0.003326,67477.0,67476.0,0.17060884]
[1729571622041,0.010326,67477.0,67476.0,0.17160884]
[1729571622663,0.02420261,67477.0,67476.0,0.17160884]
[1729571623009,0.02620261,67477.0,67476.0,0.1717872]
[1729571623615,0.02420247,67477.0,67476.0,0.1717872]
[1729571623625,0.02720247,67477.0,67476.0,0.1727872]
[1729571624085,0.02720247,67477.0,67476.0,0.17260884]
[1729571630771,0.02720543,67477.0,67476.0,0.17260884]
[1729571638666,0.02721007,67477.0,67476.0,0.17260884]
[1729571640978,0.013326,67477.0,67476.0,0.17260884]
[1729571645667,0.006326,67477.0,67476.0,0.17160884]
[1729571646123,0.009326,67477.0,67476.0,0.17160884]
[1729571646461,0.006326,67477.0,67476.0,0.17060884]
[1729571646636,0.003326,67477.0,67476.0,0.17060884]
[1729571646855,0.006326,67477.0,67476.0,0.17060884]
[1729571647139,0.009326,67477.0,67476.0,0.17060884]
[1729571649008,0.009326,67477.0,67476.0,0.31880884]
[1729571649650,0.009326,67477.0,67476.0,0.17060884]
[1729571650469,0.009326,67477.0,67476.0,0.26930884]
[1729571661172,0.0139613,67477.0,67476.0,0.26930884]
[1729571663523,0.01396138,67477.0,67476.0,0.26930884]
[1729571663537,0.01396138,67477.0,67476.0,0.41750884]
[1729571663764,0.009326,67477.0,67476.0,0.41750884]
[1729571663908,0.01396124,67477.0,67476.0,0.41750884]
[1729571664111,0.01096124,67477.0,67476.0,0.41750884]
[1729571664323,0.01096124,67477.0,67476.0,0.48400289]
[1729571664529,0.006326,67477.0,67476.0,0.41750884]
[1729571665127,0.003326,67477.0,67476.0,0.41750884]
[1729571665322,0.003326,67477.0,67476.0,0.42150884]
[1729571665547,0.004326,67477.0,67476.0,0.42150884]
[1729571665755,0.003326,67477.0,67476.0,0.48400289]
[1729571666168,0.003326,67477.0,67476.0,0.61531639]
[1729571666378,0.003326,67477.0,67476.0,0.63765944]
[1729571666581,0.003326,67477.0,67476.0,0.5490007]
[1729571666779,0.003326,67477.0,67476.0,0.51334594]
[1729571667006,0.003326,67477.0,67476.0,0.5043872]
[1729571667518,0.003326,67477.0,67476.0,0.5023872]
[1729571667923,0.003326,67477.0,67476.0,0.5033872]
[1729571668334,0.003326,67477.0,67476.0,0.591067]
[1729571668498,0.003326,67477.0,67476.0,0.594067]
[1729571668703,0.003326,67477.0,67476.0,0.592067]
[1729571669068,0.003326,67477.0,67476.0,0.594067]
[1729571669688,0.003326,67477.0,67476.0,0.59404493]
[1729571671390,0.003326,67477.0,67476.0,0.5053872]
[1729571672549,0.003326,67477.0,67476.0,0.57187097]
[1729571672764,0.003326,67477.0,67476.0,0.24227097]
[1729571672975,0.003326,67477.0,67476.0,0.1757872]
[1729571673209,0.151524,67477.0,67476.0,0.1757872]
[1729571673622,0.1561594,67477.0,67476.0,0.1757872]
[1729571673861,0.1561594,67477.0,67476.0,0.17560884]
[1729571674079,0.26445598,67477.0,67476.0,0.17560884]
[1729571674284,0.25982058,67477.0,67476.0,0.17560884]
[1729571674722,0.151524,67477.0,67476.0,0.17560884]
[1729571675057,0.151524,67477.0,67476.0,0.17260884]
[1729571675465,0.151524,67477.0,67476.0,0.17360884]
[1729571675861,0.26282058,67477.0,67476.0,0.17360884]
[1729571676563,0.26282058,67477.0,67476.0,0.17060884]
[1729571676986,0.26482058,67477.0,67476.0,0.17060884]
[1729571678627,0.156524,67477.0,67476.0,0.17060884]
[1729571708457,0.008326,67477.0,67476.0,0.17060884]
[1729571710064,0.156524,67477.0,67476.0,0.17060884]
[1729571711412,0.16394106,67477.0,67476.0,0.17060884]
[1729571711812,0.156524,67477.0,67476.0,0.17060884]
[1729571712208,0.16394106,67477.0,67476.0,0.17060884]
[1729571712478,0.008326,67477.0,67476.0,0.17060884]
[1729571714571,0.156524,67477.0,67476.0,0.17060884]
[1729571715227,0.008326,67477.0,67476.0,0.17060884]
[1729571715573,0.156524,67477.0,67476.0,0.17060884]
[1729571724146,0.15634563,67477.0,67476.0,0.17060884]
[1729571727821,0.00814763,67477.0,67476.0,0.17060884]
[1729571728922,0.15634563,67477.0,67476.0,0.17060884]
[1729571731992,0.15634563,67477.0,67476.0,0.17803459]
[1729571734372,0.16098135,67477.0,67476.0,0.17803459]
[1729571735275,0.15634563,67477.0,67476.0,0.17803459]
[1729571735666,0.16098136,67477.0,67476.0,0.17803459]
[1729571736750,0.15634563,67477.0,67476.0,0.17803459]
[1729571739098,0.16098135,67477.0,67476.0,0.17803459]
[1729571743345,0.26927793,67477.0,67476.0,0.17803459]
[1729571744859,0.26927794,67477.0,67476.0,0.17803459]
[1729571747056,0.61027026,67477.0,67476.0,0.02907544]
[1729571747251,0.66577452,67477.0,67476.0,0.02907544]
[1729571747457,0.66577452,67477.0,67476.0,0.00164]
[1729571747662,0.015,67472.0,67471.0,0.22265268]
[1729571747842,0.65673789,67472.0,67471.0,0.22265268]
[1729571748072,0.65673789,67472.0,67471.0,0.25923088]
[1729571748287,0.436511,67471.0,67470.0,0.0001001]
[1729571748534,0.55225589,67471.0,67470.0,0.0001001]
[1729571749311,0.52999223,67471.0,67470.0,0.0001001]
[1729571749721,0.52999223,67471.0,67470.0,0.0281001]
[1729571749926,0.53299223,67471.0,67470.0,0.0281001]
[1729571750361,0.53096008,67471.0,67470.0,0.0281001]
[1729571750570,0.44214673,67471.0,67470.0,0.0281001]
[1729571750984,0.44414673,67471.0,67470.0,0.0281001]
[1729571751407,0.51073758,67471.0,67470.0,0.0281001]
[1729571751607,0.61903416,67471.0,67470.0,0.0281001]
[1729571751818,0.64125666,67471.0,67470.0,0.0281001]
[1729571752030,0.55244331,67471.0,67470.0,0.028]
[1729571752219,0.44414673,67471.0,67470.0,0.028]
[1729571752648,0.55244331,67471.0,67470.0,0.028]
[1729571752851,0.68639043,67471.0,67470.0,0.028]
[1729571753055,0.57544331,67471.0,67470.0,0.028]
[1729571754250,0.46714673,67471.0,67470.0,0.028]
[1729571754678,0.55584391,67471.0,67470.0,0.028]
[1729571755286,0.53365616,67471.0,67470.0,0.028]
[1729571755488,0.46714673,67471.0,67470.0,0.028]
[1729571755949,0.53365446,67471.0,67470.0,0.028]
[1729571756156,0.46714673,67471.0,67470.0,0.028]
[1729571756361,0.53365626,67471.0,67470.0,0.028]
[1729571757448,0.46714847,67471.0,67470.0,0.028]
[1729571758526,0.51146293,67471.0,67470.0,0.028]
[1729571758741,0.51146271,67471.0,67470.0,0.028]
[1729571758974,0.46714847,67471.0,67470.0,0.028]
[1729571759209,0.51146276,67471.0,67470.0,0.028]
[1729571759423,0.51146127,67471.0,67470.0,0.028]
[1729571760765,0.51146127,67471.0,67470.0,0.029652]
[1729571760980,0.51145548,67471.0,67470.0,0.029652]
[1729571761426,0.51144894,67471.0,67470.0,0.029652]
[1729571763452,0.46714847,67471.0,67470.0,0.029652]
[1729571764777,0.61973377,67471.0,67470.0,0.029652]
[1729571765041,0.7244042,67471.0,67470.0,0.029652]
[1729571765473,0.79083122,67471.0,67470.0,0.029652]
[1729571765747,0.79083152,67471.0,67470.0,0.029652]
[1729571765975,0.68253494,67471.0,67470.0,0.029652]
[1729571766209,0.61147015,67471.0,67470.0,0.029652]
[1729571766438,0.61610788,67471.0,67470.0,0.029652]
[1729571767498,0.66038287,67471.0,67470.0,0.029652]
[1729571767701,0.61610788,67471.0,67470.0,0.029652]
[1729571768565,0.66037961,67471.0,67470.0,0.029652]
[1729571768799,0.61610788,67471.0,67470.0,0.029652]
[1729571769236,0.66037936,67471.0,67470.0,0.029652]
[1729571769914,0.61610788,67471.0,67470.0,0.029652]
[1729571770344,0.66037637,67471.0,67470.0,0.029652]
[1729571773184,0.76867295,67471.0,67470.0,0.029652]
[1729571773403,0.76403522,67471.0,67470.0,0.029652]
[1729571773618,0.7244045,67471.0,67470.0,0.029652]
[1729571774030,0.79080724,67471.0,67470.0,0.029652]
[1729571774389,0.7244045,67471.0,67470.0,0.029652]
[1729571775525,0.61610792,67471.0,67470.0,0.029652]
[1729571775770,0.68174193,67471.0,67470.0,0.029652]
[1729571775981,0.60394193,67471.0,67470.0,0.029652]
[1729571776390,0.60594193,67471.0,67470.0,0.029652]
[1729571776595,0.60394193,67471.0,67470.0,0.029652]
[1729571778251,0.60594193,67471.0,67470.0,0.029652]
[1729571778577,0.60394193,67471.0,67470.0,0.029652]
[1729571781119,0.60394164,67471.0,67470.0,0.029652]
[1729571781738,0.26884848,67471.0,67470.0,0.029652]
[1729571781966,0.37714506,67471.0,67470.0,0.029652]
[1729571782341,0.15384848,67471.0,67470.0,0.198252]
[1729571782586,0.15884848,67471.0,67470.0,0.198252]
[1729571782784,0.15884848,67471.0,67470.0,0.23536198]
[1729571783008,0.15884848,67471.0,67470.0,0.06676198]
[1729571783226,0.27414506,67471.0,67470.0,0.05276198]
[1729571783369,0.27714506,67471.0,67470.0,0.05276198]
[1729571783787,0.37614506,67471.0,67470.0,0.001652]
[1729571784033,0.38214506,67471.0,67470.0,0.002652]
[1729571784241,0.38214506,67471.0,67470.0,0.003652]
[1729571784440,0.38314506,67471.0,67470.0,0.003652]
[1729571784878,0.38214506,67471.0,67470.0,0.002652]
[1729571785185,0.37614506,67471.0,67470.0,0.015652]
[1729571785584,0.37614506,67471.0,67470.0,0.016652]
[1729571786057,0.37614506,67471.0,67470.0,0.015652]
[1729571786553,0.37614506,67471.0,67470.0,0.029652]
[1729571788055,0.76587901,67471.0,67470.0,0.029652]
[1729571788259,0.67724164,67471.0,67470.0,0.029652]
[1729571788925,0.67724203,67471.0,67470.0,0.029652]
[1729571789145,0.67260416,67471.0,67470.0,0.029652]
[1729571789327,0.67724203,67471.0,67470.0,0.029652]
[1729571790429,0.81019809,67471.0,67470.0,0.029652]
[1729571790643,0.81041282,67471.0,67470.0,0.029652]
[1729571791497,0.81041282,67471.0,67470.0,9e-06]
[1729571791498,0.82620118,67471.0,67470.0,9e-06]
[1729571794500,0.7179046,67471.0,67470.0,9e-06]
[1729571794720,0.28584887,67471.0,67470.0,9e-06]
[1729571794931,0.50744203,67471.0,67470.0,9e-06]
[1729571795361,0.29084887,67471.0,67470.0,9e-06]
[1729571795577,0.50744203,67471.0,67470.0,9e-06]
[1729571796458,0.50944203,67471.0,67470.0,9e-06]
[1729571796685,0.50944203,67471.0,67470.0,0.001661]
[1729571796888,0.50944176,67471.0,67470.0,0.001661]
[1729571798859,0.50744176,67471.0,67470.0,0.001661]
[1729571799102,0.50244176,67471.0,67470.0,0.001661]
[1729571799318,0.50944176,67471.0,67470.0,0.001661]
[1729571800694,0.50480416,67471.0,67470.0,0.001661]
[1729571800914,0.50944173,67471.0,67470.0,0.001661]
[1729571801141,0.50480416,67471.0,67470.0,0.001661]
[1729571801400,0.50944173,67471.0,67470.0,0.001661]
[1729571801880,0.017,67464.0,67463.0,0.22265268]
[1729571802109,0.48929803,67464.0,67463.0,0.22265268]
[1729571802343,0.48645773,67464.0,67463.0,0.03709652]
[1729571802573,0.153238,67459.0,67458.0,0.0943]
[1729571802814,0.15787557,67459.0,67458.0,0.0943]
[1729571803044,0.37446873,67459.0,67458.0,0.0943]
[1729571804178,0.38346873,67459.0,67458.0,0.0953]
[1729571804506,0.38346893,67459.0,67458.0,0.0953]
[1729571804661,0.38346893,67459.0,67458.0,0.001]
[1729571805139,0.39246893,67459.0,67458.0,0.002]
[1729571805844,0.39746893,67459.0,67458.0,0.002]
[1729571806083,0.40246893,67459.0,67458.0,0.002]
[1729571806314,0.49338132,67459.0,67458.0,0.002]
[1729571806755,0.49138132,67459.0,67458.0,0.002]
[1729571808106,0.48674355,67459.0,67458.0,0.002]
[1729571808229,0.49138139,67459.0,67458.0,0.002]
[1729571808461,0.49138139,67459.0,67458.0,0.003652]
[1729571808917,0.59138139,67459.0,67458.0,0.003652]
[1729571812928,0.37478823,67459.0,67458.0,0.003652]
[1729571813166,0.59138139,67459.0,67458.0,0.003652]
[1729571815017,0.59137514,67459.0,67458.0,0.003652]
[1729571819201,0.59137515,67459.0,67458.0,0.003652]
[1729571819926,0.48307857,67459.0,67458.0,0.003652]
[1729571820786,0.59137515,67459.0,67458.0,0.003652]
[1729571821753,0.48307857,67459.0,67458.0,0.003652]
[1729571822015,0.47844072,67459.0,67458.0,0.003652]
[1729571822226,0.59137515,67459.0,67458.0,0.003652]